Cogmind - Beta 15 @@@ ROGUE MODE // 2025.09.03 @ 23:45:21 Player: Pitt Result: Destroyed by G-47 Trooper with Particle Gun Performance ------------- Evolutions (2) 1000 Regions Visited (4) 800 Robots Destroyed (61) 305 Value Destroyed (1751) 1751 Prototype IDs (3) 60 Alien Tech Used (0) 0 Bonus (735) 735 TOTAL SCORE: 4651 Bonus ------- Follower Combat Kills 35 Entered Garrisons 200 Used RIF Installer 500 Cogmind --------- Core Integrity 0/550 Matter 285/300 Energy 100/100 System Corruption 0% Temperature Cool (19) Movement Core (250) Ox4 Location -8/Garrison Parts ------- > --- POWER (2) -------- (None) > --- PROPULSION (4) --- (None) > --- UTILITY (3) ------ Medium Storage Unit Relay Coupler [Brawler] (22) > --- WEAPON (2) ------- Particle Gun > --- INVENTORY (10) --- Improved Heat Sink Improved Heat Sink Advanced Weight Redist. System Signal Interpreter Tractor Beam Precision Assault Rifle Improved Light Cannon Improved Datajack Mining Laser Hammer Peak State ------------ > --- POWER ------------ Heavy Ion Engine Light Nuclear Core > --- PROPULSION ------- Light Treads Aluminum Leg Aluminum Leg Carbon-fiber Leg > --- UTILITY ---------- Medium Storage Unit Heavy Armor Plating > --- WEAPON ----------- Precision Assault Rifle Precision Assault Rifle > --- INVENTORY -------- Ion Engine Light Nuclear Core Aluminum Leg Signal Interpreter Spread Laser Improved Light Cannon Improved Light Cannon Improved Datajack Mining Laser [Rating: 30] Favorites ----------- Power Ion Engine Engine Ion Engine Power Core Light Nuclear Core Propulsion Light Treads Treads Light Treads Leg Aluminum Leg Wheel Wheel Utility Medium Storage Unit Device Improved Terrain Scanner Storage Medium Storage Unit Processor Transport Network Coupler Hackware Relay Coupler [Brawler] Protection Light Armor Plating Weapon Improved Assault Rifle Energy Gun Small Laser Energy Cannon Beam Cannon Ballistic Gun Improved Assault Rifle Ballistic Cannon Light Cannon Launcher Concussive RPG Special Weapon Mining Laser Slashing Weapon Blade Saw Special Melee Weapon Improved Datajack Build | -11 -10 -9 -8 -8 ------- Run | Yrd Mat Mat Mat Gar Slots Evolved 4 | . . 2 2 . Power 1 | . . . 1 . Propulsion 2 | . . 1 1 . Utility 1 | . . 1 . . Weapon . | . . . . . Parts Attached 57 | 8 5 10 23 11 Power 9 | 1 . 1 5 2 Engine 4 | 1 . 1 1 1 Core 5 | . . . 4 1 Reactor . | . . . . . Propulsion 19 | 3 . 2 12 2 Treads 9 | . . 2 5 2 Leg 7 | . . . 7 . Wheel 3 | 3 . . . . Hover . | . . . . . Flight . | . . . . . Utility 13 | 2 2 4 3 2 Device 3 | 1 1 . 1 . Storage 2 | 1 1 . . . Processor 2 | . . 2 . . Hackware 2 | . . . . 2 Protection 4 | . . 2 2 . Artifact . | . . . . . Weapon 16 | 2 3 3 3 5 Energy Gun 3 | 1 . 1 . 1 Energy Cannon 1 | . 1 . . . Ballistic Gun 5 | 1 . 2 2 . Ballistic Cannon 3 | . 1 . 1 1 Launcher 1 | . . . . 1 Special Weapon 1 | . 1 . . . Impact Weapon . | . . . . . Slashing Weapon 1 | . . . . 1 Piercing Weapon . | . . . . . Special Melee Weapon 1 | . . . . 1 Unidentified Prototypes 3 | . . 1 2 . Parts Lost 28 | . . 7 12 9 Power 6 | . . 1 2 3 Propulsion 14 | . . 2 8 4 Utility 6 | . . 3 2 1 Weapon 2 | . . 1 . 1 Highest Loss Streak 9 | . . 4 6 9 To Critical Strikes . | . . . . . Average Backups 8 | 2 8 9 9 9 Power 1 | . 2 1 1 . Propulsion . | . 1 . . . Utility 2 | . 2 2 1 4 Weapon 4 | 1 2 4 4 3 Tool/Special . | . . . . . Unused Backups 7 | . . 1 1 5 Power . | . . . . . Propulsion . | . . . . . Utility 4 | . . . . 4 Weapon 3 | . . 1 1 1 Tool/Special . | . . . . . Average Slot Usage (%) 89 | . 100 91 83 92 Engine 8 | . 14 7 7 8 Core 4 | . . . 7 8 Treads 10 | . . 5 11 28 Leg 6 | . . . 15 4 Wheel 12 | . 28 25 . . Device 7 | . 14 13 2 3 Storage 10 | . 14 11 9 9 Processor 2 | . . 2 4 . Hackware 1 | . . . . 5 Protection 4 | . . 4 6 6 Energy Gun 2 | . 13 . . 3 Energy Cannon 3 | . . 7 . . Ballistic Gun 9 | . 12 6 15 3 Ballistic Cannon 4 | . . 7 2 6 Peak Build Rating 30 | 7 10 14 30 23 Average Rating 15 | 5 8 11 20 19 On Entrance 10 | . 7 10 14 23 Naked Turns . | . . . . . Heaviest Build 46 | 13 22 29 46 35 Greatest Support 60 | 26 20 40 60 60 Greatest Overweight (x) 8 | . 1 1 8 2 Average Overweight (x) . | . . . . . Largest Inventory Capacity 10 | 8 10 10 10 10 Average Capacity 9 | 7 8 10 10 10 Most Carried 10 | 6 10 10 10 10 Average Carried 9 | 2 8 9 9 9 Final Capacity 10 | 8 10 10 10 10 Final Carried 10 | 6 10 9 10 10 Class Distribution -------------------- 54% | Mutant 45% | Scavenger-Mutant Dominant Class ---------------- Mutant | -10/Materials Mutant | -9/Materials Scavenger-Mutant | -8/Materials Scavenger-Mutant | -8/Garrison Resources | -11 -10 -9 -8 -8 ----------- Run | Yrd Mat Mat Mat Gar Matter Collected 1591 | 156 27 432 757 219 Remotely . | . . . . . Salvage Created 2066 | 45 27 672 1155 167 Parts 136 | 9 3 44 75 5 Haulers Intercepted 3 | . . 2 1 . Recyclers Shooed 2 | . . 1 1 . Parts Field Recycled . | . . . . . Retrieved Matter . | . . . . . Parts Self-Destructed . | . . . . . Prevented . | . . . . . Kills | -11 -10 -9 -8 -8 ------- Run | Yrd Mat Mat Mat Gar Combat Hostiles Destroyed 45 | . . 12 27 6 Melee 2 | . . . . 2 Guns 31 | . . 8 22 1 Cannons 11 | . . 4 5 2 Classes Destroyed 11 | 1 1 6 2 1 Worker 3 | . . 1 2 . Builder 2 | . 1 . 1 . Tunneler 3 | 3 . . . . Hauler 3 | . . 2 1 . Recycler 3 | . . 2 1 . Mechanic 1 | . . . 1 . Watcher 1 | . . . 1 . Swarmer 15 | . . 4 11 . Cutter 3 | . . . . 3 Grunt 16 | . . 3 10 3 Sentry 11 | . . 5 6 . Best Kill Streak 9 | 2 1 9 8 3 Combat Bots Only 8 | . . 5 8 3 Max Kills in Single Turn 2 | 1 1 2 2 1 Gunslinging 1 | . . 1 1 . Exploded . | . . . . . Melee 1 | . . . . 1 Uniques/NPCs Destroyed . | . . . . . Combat | -11 -10 -9 -8 -8 -------- Run | Yrd Mat Mat Mat Gar Hostile Shots Fired 362 | . . 84 198 80 Missed 85 | . . 24 48 13 Hits 277 | . . 60 150 67 Melee 13 | . . . . 13 Projectile 264 | . . 60 150 54 Critical Strikes 18 | . . 3 7 8 Damage Taken 4140 | . . 750 2253 1137 Core 613 | . . 51 371 191 Absorbed by Shields . | . . . . . Core Remaining (%) 95 | 100 100 87 . . Volleys Fired 170 | 3 2 52 82 31 Largest 2 | 2 2 2 2 1 Hottest 125 | 60 100 125 61 100 Shots Fired 287 | 6 3 91 156 31 Gun 181 | 6 2 48 119 6 Cannon 87 | . . 43 37 7 Launcher 1 | . . . . 1 Special 18 | . 1 . . 17 Kinetic 232 | 3 1 65 156 7 Thermal 54 | 3 2 26 . 23 Explosive 1 | . . . . 1 Electromagnetic . | . . . . . Robot Hit Streak 18 | 3 5 13 18 13 Robot Miss Streak 4 | . . 4 4 2 Penetration Max . | . . . . . Secondary Targets 6 | . . 4 2 . Max Gunslinging Chain 1 | . . 1 1 . Shots Hit Robots 212 | 3 2 63 103 41 Core Hits 110 | 3 1 27 52 27 Critical Kills . | . . . . . Critical Parts Destroyed . | . . . . . Critical Strikes 8 | . . . 2 6 Burn 1 | . . . . 1 Blast 2 | . . . 2 . Sever 5 | . . . . 5 Melee Attacks 22 | . . . . 22 Impact . | . . . . . Slashing 16 | . . . . 16 Piercing . | . . . . . Sneak Attacks 1 | . . . . 1 Combat Hostiles 1 | . . . . 1 Follow-up Attacks . | . . . . . Damage Inflicted 3843 | 35 22 1025 1948 813 Guns 2199 | 35 22 485 1552 105 Cannons 995 | . . 540 396 59 Explosions 29 | . . . . 29 Melee 212 | . . . . 212 Ramming . | . . . . . Kinetic 2738 | . 10 721 1948 59 Thermal 864 | 35 12 304 . 513 Explosive 29 | . . . . 29 Electromagnetic . | . . . . . Impact . | . . . . . Slashing 212 | . . . . 212 Piercing . | . . . . . Highest Corruption . | . . . . . Average Corruption . | . . . . . Corruption Purged . | . . . . . Corruption Blocked . | . . . . . Overload Shots . | . . . . . Overflow Damage 67 | . . . 67 . Projectiles . | . . . . . Explosions 67 | . . . 67 . Melee . | . . . . . Knockbacks 1 | . . . . 1 Impact . | . . . . . Kinetic 1 | . . . . 1 Secondary . | . . . . . Self-Inflicted Damage 232 | . . . 210 22 Shots 3 | . . . 2 1 Rammed . | . . . . . Targets Rammed . | . . . . . Kicked . | . . . . . Crushed . | . . . . . Highest Temperature 407 | 20 20 328 407 96 Average Temperature 122 | 15 13 134 143 31 Received Heat Transfer 1809 | . . 324 954 531 Effects 4 | . . 1 3 . Shutdowns 2 | . . . 2 . Interference 1 | . . 1 . . Short Circuit 1 | . . . 1 . Siege Activations . | . . . . . Martial Activations . | . . . . . Shielding Activations . | . . . . . Robots Disrupted . | . . . . . Combat Hostiles . | . . . . . Robots Corrupted . | . . . . . Combat Hostiles . | . . . . . Parts Fried . | . . . . . Impact Corruptions . | . . . . . Robots Melted 1 | . . . . 1 Combat Hostiles 1 | . . . . 1 Parts Melted 3 | . 1 2 . . Heat Transferred 1793 | 75 25 622 . 1071 Parts Sabotaged . | . . . . . Parts Stolen . | . . . . . Parts Stripped . | . . . . . Power Chain Reactions . | . . . . . Alert | -11 -10 -9 -8 -8 ------- Run | Yrd Mat Mat Mat Gar Maximum Alert Level 2 | . . . 1 2 Low Security (%) 65 | 100 100 100 49 . Level 1 34 | . . . 50 99 Level 2 . | . . . . . Level 3 . | . . . . . Level 4 . | . . . . . Level 5 . | . . . . . High Security . | . . . . . Max Security . | . . . . . Peak Influence 404 | 5 12 199 341 404 Initial 221 | . 3 . 63 221 Average 126 | 1 1 47 169 301 Influence Increases 1525 | 15 18 381 808 303 Destroy 0b10 Robot/C 920 | . . 240 540 140 Destroy 0b10 Robot/NC 90 | 15 5 25 35 10 Destroy Leader 198 | . . 74 114 10 Allied During Kill 2 | . . . . 2 Successful Hack 50 | . 12 12 10 16 Disable Machine 45 | . . . 45 . Anti-Garrison Action 50 | . . . . 50 Destroy Structure 35 | . 1 . 34 . Lose Combat Pursuer 135 | . . 30 30 75 Influence Decreases 1151 | 10 21 232 618 270 Entered New Map 212 | . 2 2 88 120 Time Decay 599 | 10 19 160 410 . Lost Part 270 | . . 60 120 90 Lost Ally 70 | . . 10 . 60 Squads Dispatched 5 | . . . 5 . Investigation 2 | . . . 2 . Extermination . | . . . . . Reinforcement 1 | . . . 1 . Assault . | . . . . . Garrison 2 | . . . 2 . Intercept . | . . . . . Searches Triggered . | . . . . . Construction Impeded . | . . . . . Haulers Reinforced . | . . . . . Active Scanning Responses . | . . . . . Cargo Convoy Interrupts . | . . . . . Stealth | -11 -10 -9 -8 -8 --------- Run | Yrd Mat Mat Mat Gar Distress Signals 4 | . . 2 2 . Communications Jammed . | . . . . . Distress Signals . | . . . . . Times Spotted 77 | . . 21 38 18 Peak Tracking Total 6 | . . 5 6 6 Tactical Retreats 6 | . . 2 1 3 Traps | -11 -10 -9 -8 -8 ------- Run | Yrd Mat Mat Mat Gar Traps Triggered 2 | . . . 2 . Indirectly . | . . . . . Trap Hack Attempts . | . . . . . Triggered . | . . . . . Disarmed . | . . . . . Reprogrammed . | . . . . . Reused . | . . . . . Traps Extracted . | . . . . . Installed . | . . . . . Triggered . | . . . . . Machines | -11 -10 -9 -8 -8 ---------- Run | Yrd Mat Mat Mat Gar Machines Disabled 4 | . . . 3 1 Max in Single Turn 2 | . . . 2 1 Garrison Relay 1 | . . . . 1 Machines Repaired . | . . . . . Machines Dismantled . | . . . . . Machines Sabotaged . | . . . . . Overloaded Fab Kills . | . . . . . Hacking | -11 -10 -9 -8 -8 --------- Run | Yrd Mat Mat Mat Gar Machines Accessed 12 | . 1 5 5 1 Terminals 9 | . . 5 3 1 Fabricators . | . . . . . Repair Stations . | . . . . . Recycling Units 1 | . 1 . . . Scanalyzers 1 | . . . 1 . Garrison Access 1 | . . . 1 . Total Hacks 25 | . 2 12 9 2 Successful 15 | . 1 8 5 1 Failed 10 | . 1 4 4 1 Catastrophic 2 | . . 1 1 . Database Lockouts . | . . . . . Manual 9 | . 2 5 2 . Terminals 18 | . . 12 4 2 Fabricators . | . . . . . Repair Stations . | . . . . . Recycling Units 2 | . 2 . . . Scanalyzers 2 | . . . 2 . Garrison Access 3 | . . . 3 . Terminal Hacks 9 | . . 6 2 1 Terminal Index 1 | . . 1 . . Alert Level 3 | . . 3 . . Locate Traps 1 | . . 1 . . Hauler Manifests 2 | . . 1 1 . Zone Layout 1 | . . . 1 . Security Stations 1 | . . . . 1 Fabricator Hacks . | . . . . . Repair Station Hacks . | . . . . . Recycling Unit Hacks . | . . . . . Scanalyzer 2 | . . . 2 . Insert Component 1 | . . . 1 . Analyze 1 | . . . 1 . Garrison Access Hacks 1 | . . . 1 . Unlock Access 1 | . . . 1 . Unauthorized Hacks 3 | . 1 2 . . Terminals 2 | . . 2 . . Assimilate 1 | . . 1 . . Botnet 1 | . . 1 . . Fabricators . | . . . . . Repair Stations . | . . . . . Recycling Units 1 | . 1 . . . Monitor 1 | . 1 . . . Scanalyzers . | . . . . . Garrison Access . | . . . . . Data Cores Recovered . | . . . . . Used . | . . . . . Hacking Detections 11 | . 1 5 4 1 Full Trace Events 1 | . . . 1 . Feedback Events . | . . . . . Feedback Blocked . | . . . . . Robot Schematics Acquired . | . . . . . Robots Built . | . . . . . Authchips . | . . . . . Time . | . . . . . Total Robot Build Rating . | . . . . . Part Schematics Acquired 1 | . . . 1 . Parts Built . | . . . . . Authchips . | . . . . . Time . | . . . . . Total Part Build Rating . | . . . . . Parts Repaired . | . . . . . Time . | . . . . . Parts Recycled . | . . . . . Recycled Matter . | . . . . . Retrieved Matter . | . . . . . Retrieved Components . | . . . . . Parts Scanalyzed 1 | . . . 1 . Part Schematics Acquired 1 | . . . 1 . Parts Damaged . | . . . . . Bothacking | -11 -10 -9 -8 -8 ------------ Run | Yrd Mat Mat Mat Gar Used RIF Installer 1 | . . . . 1 Robots Hacked 4 | . . . . 4 Non-combat . | . . . . . Combat 4 | . . . . 4 Robot Hacks Applied 4 | . . . . 4 spike_heat 1 | . . . . 1 overwrite_iff 1 | . . . . 1 streamctrl_high 1 | . . . . 1 formatsys_high 1 | . . . . 1 Relay Couplers Released 3 | . . . . 3 Machine Destruction 3 | . . . . 3 Attached 2 | . . . . 2 Fabnet Peak Effective % . | . . . . . Robots Rewired . | . . . . . Allies Hacked . | . . . . . Hacks Repelled . | . . . . . Allies | -11 -10 -9 -8 -8 -------- Run | Yrd Mat Mat Mat Gar Total Allies 4 | . . 1 . 3 Largest Group 2 | . . 1 . 2 Highest-Rated Group 32 | . . 10 . 32 Highest-Rated Ally 16 | . . 10 . 16 Total Orders 2 | . . 2 . . STAY 1 | . . 1 . . FOLLOW 1 | . . 1 . . Ally Attacks 7 | . . . . 7 Total Damage 94 | . . . . 94 Kills 1 | . . . . 1 Allies Corrupted . | . . . . . Allies Melted . | . . . . . Intel | -11 -10 -9 -8 -8 ------- Run | Yrd Mat Mat Mat Gar Active Infowar (turns) 1711 | 37 295 877 502 . Terrain 931 | . 252 679 . . Seismic 610 | 37 43 530 . . T.N.C. 700 | . . 198 502 . Robot Analysis Total . | . . . . . Derelict Logs Recovered . | . . . . . Drone Launches . | . . . . . Drone Recoveries . | . . . . . Exploration | -11 -10 -9 -8 -8 ------------- Run | Yrd Mat Mat Mat Gar Turns Passed 2960 | 78 295 1084 998 505 Spaces Moved 1067 | 59 124 317 379 188 Core 15 | 4 . . 11 . Treads 528 | . . 130 213 185 Legs 158 | . . . 155 3 Wheels 366 | 55 124 187 . . Hover . | . . . . . Flight . | . . . . . Fastest Speed 50 | 50 80 86 120 160 Average Speed 143 | 85 81 118 183 163 Slowest Speed 450 | 90 95 160 450 260 Overloaded Moves . | . . . . . Propulsion Burnouts . | . . . . . Robots Hopped . | . . . . . Potential Cave-ins . | . . . . . Cave-ins Triggered . | . . . . . Exploration Rate (%) 21 | 4 22 21 35 24 Regions Visited 4 Branch Regions . Pre-discovered Areas . | . . . . . Known Exits Taken 1 | . . . 1 . Unknown Exits Taken 3 | 1 1 1 . . Scrap Searched . | . . . . . Spaces Dug 1 | . 1 . . . Terrain Destroyed 32 | . 1 . 31 . Melee . | . . . . . Projectile 3 | . 1 . 2 . AOE 29 | . . . 29 . Terrain Rammed . | . . . . . Walls Destroyed . | . . . . . Machines Disabled . | . . . . . Actions | -11 -10 -9 -8 -8 --------- Run | Yrd Mat Mat Mat Gar Total 2127 | 77 311 935 519 285 Wait 748 | . 174 546 15 13 Move 1064 | 58 123 316 379 188 Hop . | . . . . . Pick Up 23 | 6 3 4 6 4 Fast Attach 44 | 8 2 7 18 9 Attach 10 | . . 5 3 2 Detach 8 | 1 1 3 2 1 Swap 17 | . 4 . 5 8 Drop 21 | 1 2 2 9 7 Fire 170 | 3 2 52 82 31 Melee 22 | . . . . 22 Ram . | . . . . . Kick . | . . . . . Crush . | . . . . . Escape Stasis . | . . . . . Rewire . | . . . . . Trap . | . . . . . Miscellaneous . | . . . . . Route ------- -11/Scrapyard -10/Materials -9/Materials -8/Materials (discovered 2 exits: [*Sto] / Gar) -8/Garrison History --------- Turn | Location | Event 16 | -11/Scrapyard | Discovered new exit (range 15) 79 | -11/Scrapyard | Entered Materials 338 | -10/Materials | Build established: Mutant 367 | -10/Materials | Discovered new exit (range 9) 374 | -10/Materials | Entered another Materials area 374 | -9/Materials | Evolved 2 slots: Propulsion x1, Utility x1 1103 | -9/Materials | Lost 4 parts (1p1n1u1w) 1386 | -9/Materials | Discovered new exit (range 7) 1458 | -9/Materials | Entered another Materials area 1458 | -8/Materials | Evolved 2 slots: Power x1, Propulsion x1 1500 | -8/Materials | Discovered new exit (range 7) 1878 | -8/Materials | Destroyed 8 combat bots 1904 | -8/Materials | Build established: Scavenger-Mutant 2176 | -8/Materials | Core integrity fell below 50% 2191 | -8/Materials | Lost 6 parts (1p4n1u) 2321 | -8/Materials | Garrison activated, responded to threat 2456 | -8/Materials | Identified exit to Garrison 2456 | -8/Materials | Entered Garrison 2504 | -8/Garrison | Triggered checkpoint 2601 | -8/Garrison | Installed Relay Interface Framework 2617 | -8/Garrison | Garrison Relay disabled 2643 | -8/Garrison | Learned Factory security intel 2658 | -8/Garrison | Triggered checkpoint 2723 | -8/Garrison | Lost 3 allies 2904 | -8/Garrison | Triggered checkpoint 2910 | -8/Garrison | Core integrity fell below 20% 2961 | -8/Garrison | Destroyed by G-47 Trooper with Particle Gun Last Messages --------------- 02904_ Sneak attack on G-47 Trooper. 02904_ G-47 Trooper Aluminum Leg severed. 02905_ Critical hit (Burn: +37). 02907_ Lgt. Treads destroyed. 02916_ G-47 Trooper Particle Gun severed. 02919_ Lgt. Armor Plating destroyed. 02922_ Lgt. Nuclear Core destroyed. 02922_ C-17 Slicer Surge Thruster severed. 02925_ Ion Engine severed. 02926_ Acquired Ion Engine. 02928_ Ion Engine destroyed. 02934_ Lgt. Treads severed. 02937_ C-17 Slicer destroyed. 02941_ Acquired Lgt. Nuclear Core. 02944_ Acquired Lgt. Treads. 02947_ Acquired Particle Gun. 02950_ Lgt. Treads destroyed. 02959_ Blade Saw destroyed. 02960_ G-47 Trooper suffers critical hit (Burn). 02960_ Lgt. Nuclear Core destroyed. Map ----- +----------------------------------------------------+ | ?????????????????????????????????????????????????? | | ?????????????????????????????????????????????????? | | ?????????????????????????????????????????????????? | | ?????????????????????????????????????????????????? | | ?????????????????????????????????????????????????? | | ?????????????????????????????????????????????????? | | ?????????????????????????????????????????????????? | | ?????????????????????????????????????????????????? | | ?????????????????????????????????????????????????? | | ?????????????????????????????????????????????????? | | ?????????????????????????????????????????????????? | | ?????????????????????????????????????????????????? | | ????????????????????????#####??""????????????????? | | ???????????????????????# ? ??????????????? | | ??????????????????????? ?? ??????????????? | | ??????????????????????? ? ??????????????? | | ???????????????????????# #? #? ???????????? | | ?????????????????????### ## ## ???????????? | | ?????????????????????? "??????????? | | ?????????????????????? "??????????? | | ??????????????????????? ???????????? | | ??????????????????????? ? ?????????????? | | ???????????????????????# #? #??? #??????????? | | ?????????????########### ## ## ##?????????? | | ?????????????# ][%=g ????????? | | ?????????????# [ @ ????????? | | ?????????????# ######## g= #??????????? | | ?????????????# #??????##!%## #####???????????? | | ?????????????# #???????# =#??? #???????????????? | | ?????????????# #???????# #?????#???????????????? | | ?????????????# #???????# #?????????????????????? | | ?????????????# #???????# #?????????????????????? | | ?????????????# #???????# #?????????????????????? | | ????########## ######### #?????????????????????? | | ????# ^ #?????????????????????? | | ????# #?????????????????????? | | ????# ####### ########### #?????????????????????? | | ????# #?????# #?????????# #?????????????????????? | | ????# #?????# #?????????# #?????????????????????? | | ????# #?????# #?????????# #?????????????????????? | | ????# #?????# #?????????# #?????????????????????? | | ????# #?????# #?????????# #?????????????????????? | | ????# #?????# #?????????# #?????????????????????? | | ????# #?????# #?????????# #?????????????????????? | | ????# #?????# #?????????#"#?????????????????????? | | ??### #?????# ###?????###%#?????????????????????? | | ??# #?????# #?????# "#?????????????????????? | | ??# #?????# #?????# #?????????????????????? | | ??# #?????# #?????# =%#?????????????????????? | | ??######?????# ###?????###=#?????????????????????? | +----------------------------------------------------+ Best States ------------- Heat Dissipation 45 Energy Generation 23 Energy Capacity 340 Matter Stores 300 Matter Capacity 300 Sight Range 16 Terrain Scan Range 16 Terrain Scan Density 85 Armor Coverage 600 Evasion (%) 45 Recoil Reduction 3 Relay Coupler Types 2 Relay Coupler Value 47 Item Schematics ----------------- Signal Interpreter | -8/Materials | Scanalyzed Robot Schematics ------------------ None Fabricated ------------ Nothing Repaired ---------- Nothing Alien Tech Used ----------------- None Achievements -------------- None Challenges ------------ None Game ------ Seed RegenerativeTransportFrame Manual? 0 Play Time 00:31:30 Cumulative 240.6 hours Start 2025.09.03 @ 20:49:43 End 2025.09.03 @ 23:45:21 Sessions 3 Manual Loads 0 Difficulty Rogue Special Mode None Game No. 373 Rogue 373 Adventurer 0 Explorer 0 Win Type - Total 0 Types 0/0/0/0/0/0/0/0/0/0 Lore% 38 Gallery% 52 Achievement% 41 Wizard Run 0 Options --------- Layout 1 ASCII 0 Keyboard 0 Movement Mouse Keybinds 0 Fullscreen 1 Font 16/SmallcapsGlow Map View 55x38 Zoom Use 0% Tactical HUD 1 Map Filters NONE Filters NONE Steam 1 RUN: df6ae310-8046-42fb-afdd-8aa6e34c1740